bitfinex/quotes_ETHUSD_20251018
["timestamp","ask_amount","ask_price","bid_price","bid_amount"]
[1760811854269,0.04478272,3892.8,3892.7,0.708]
[1760811855497,0.04478272,3892.8,3892.4,0.2337]
[1760811855686,4.70361933,3892.7,3892.4,0.2337]
[1760811856483,4.70361933,3892.7,3892.5,0.4743]
[1760811857075,7.27256547,3892.7,3892.2,0.128]
[1760811857274,4.70361933,3892.7,3892.1,0.2337]
[1760811857604,1.856,3892.6,3891.9,0.6023]
[1760811858174,0.40299585,3892.8,3892.5,0.2337]
[1760811859009,0.40299585,3892.8,3892.5,0.708]
[1760811859210,0.40299585,3892.8,3892.5,0.2337]
[1760811859375,0.40299585,3892.8,3891.8,0.002]
[1760811859376,1.728,3892.6,3892.2,0.2337]
[1760811859576,1.728,3892.6,3892.3,0.4743]
[1760811860613,1.7727822,3892.6,3892.3,0.4743]
[1760811861004,1.7727822,3892.6,3892.4,0.4743]
[1760811861317,1.7727822,3892.6,3892.5,0.4743]
[1760811862311,0.0447822,3892.6,3892.5,0.4743]
[1760811863818,0.0447822,3892.6,3892.5,0.49999043]
[1760811864120,0.0447822,3892.6,3892.5,0.80457837]
[1760811864615,0.001,3893.1,3892.7,2.707]
[1760811864782,0.001,3893.1,3892.6,0.4743]
[1760811865178,0.001,3893.1,3892.8,2.56883554]
[1760811865616,0.001,3893.1,3892.9,2.56876245]
[1760811865803,0.001,3893.1,3893.0,2.56871307]
[1760811866115,0.001,3893.1,3893.0,3.08247474]
[1760811866317,0.001,3893.1,3893.0,3.55677474]
[1760811867406,0.001,3893.1,3893.0,6.26377474]
[1760811867621,0.001,3893.1,3893.0,3.69506167]
[1760811867812,0.001,3893.1,3893.0,3.55677474]
[1760811868189,0.001,3893.1,3893.0,5.43846187]
[1760811868505,0.001,3893.1,3893.0,5.41277474]
[1760811873823,0.001,3893.1,3893.0,5.51573497]
[1760811874619,0.001,3893.1,3893.0,5.49973497]
[1760811874811,0.001,3893.1,3893.0,5.39677474]
[1760811879037,0.001,3893.1,3893.0,9.97239407]
[1760811879235,0.001,3893.1,3893.0,5.37173497]
[1760811879619,0.001,3893.1,3893.0,4.81047474]
[1760811882810,0.001,3893.1,3893.0,5.26877474]
[1760811885013,0.001,3893.1,3893.0,4.81047474]
[1760811885747,0.001,3893.1,3893.0,5.26877474]
[1760811885945,0.001,3893.1,3893.0,9.12877473]
[1760811886345,0.001,3893.1,3893.0,9.23173761]
[1760811888948,0.001,3893.1,3893.0,9.35973761]
[1760811893165,0.001,3893.1,3893.0,8.90143761]
[1760811893367,0.001,3893.1,3893.0,9.35973761]
[1760811894764,0.001,3893.4,3893.3,3.20211514]
[1760811894955,0.001,3893.4,3893.3,13.99617931]
[1760811895156,0.001,3893.4,3893.3,14.45447931]
[1760811895334,0.001,3893.4,3893.3,14.55742576]
[1760811895962,0.001,3893.4,3893.3,18.41642575]
[1760811896336,0.001,3893.4,3893.3,18.9322884]
[1760811900974,0.001,3893.5,3893.4,8.78804916]
[1760811901268,0.001,3893.5,3893.4,11.87882869]
[1760811901570,0.001,3893.5,3893.4,11.98177249]
[1760811904572,0.001,3893.5,3893.4,18.36177249]
[1760811904770,0.001,3893.5,3893.4,18.48977249]
[1760811905287,0.001,3893.5,3893.4,18.03147249]
[1760811905592,0.1421,3893.5,3893.2,2.56858009]
[1760811905757,0.1411,3893.4,3893.2,2.5685325]
[1760811905958,0.1411,3893.3,3893.1,2.56862558]
[1760811906492,0.1411,3893.3,3893.2,2.56858111]
[1760811908781,0.001,3893.5,3893.4,2.56844917]
[1760811909090,0.001,3893.5,3893.4,2.59413366]
[1760811910584,0.001,3893.5,3893.4,6.45213365]
[1760811910892,0.001,3893.5,3893.4,6.42644916]
[1760811912901,0.001,3893.5,3893.4,6.88104916]
[1760811913083,0.001,3893.5,3893.4,7.93791511]
[1760811915373,0.001,3893.5,3893.4,8.06591511]
[1760811916499,0.001,3893.8,3893.6,3.85699999]
[1760811916808,0.001,3893.8,3893.4,1.18486595]
[1760811916809,0.1421,3893.8,3893.7,3.98499999]
[1760811917105,0.1421,3893.8,3893.7,6.55325126]
[1760811917900,0.001,3893.8,3893.7,6.55325126]
[1760811920710,0.001,3893.8,3893.7,3.98499999]
[1760811920916,0.1421,3893.8,3893.7,3.98499999]
[1760811921489,0.18685904,3893.8,3893.7,3.98499999]
[1760811928411,0.04575904,3893.8,3893.7,3.35179443]
[1760811928722,0.04575904,3893.8,3893.7,3.70407694]
[1760811928723,0.001,3893.8,3893.7,3.70407694]
[1760811928911,0.001,3893.8,3893.7,3.67839443]
[1760811929287,0.001,3893.8,3893.7,3.22379443]
[1760811929694,0.001,3893.8,3893.7,3.24947694]
[1760811930726,0.001,3893.8,3893.7,3.22379443]
[1760811930905,0.001,3893.8,3893.7,2.56825127]
[1760811932625,0.001,3893.8,3893.7,3.02285127]
[1760811932823,0.001,3893.8,3893.7,2.56825127]
[1760811933027,0.001,3893.8,3893.7,3.02285127]
[1760811934036,0.001,3893.8,3893.7,3.12581495]
[1760811934239,0.001,3893.8,3893.7,4.08370177]
[1760811934728,0.001,3893.8,3893.7,5.81170177]
[1760811938649,0.001,3893.8,3893.7,5.93970177]
[1760811939428,0.001,3893.8,3893.7,9.79670176]
[1760811943664,0.001,3893.8,3893.7,5.04585049]
[1760811943864,0.001,3893.8,3893.7,6.65621494]
[1760811946149,0.001,3893.8,3893.7,7.08891494]
[1760811951202,0.001,3893.8,3893.7,6.65621494]
[1760811953363,0.001,3893.8,3893.7,7.08891494]
[1760811955687,0.001,3893.8,3893.7,6.65621494]
[1760811955888,0.001,3893.8,3893.7,8.90350222]
[1760811956087,0.001,3893.8,3893.7,9.33620222]
[1760811958671,0.001,3893.8,3893.7,8.90350222]
[1760811959794,0.001,3893.8,3893.7,6.65621494]
[1760811960806,0.001,3893.8,3893.7,7.08891494]
[1760811963401,0.001,3893.8,3893.7,9.79691494]
[1760811963605,0.001,3893.8,3893.7,7.08891494]
[1760811968208,0.001,3893.8,3893.7,6.65621494]
[1760811968414,0.001,3893.8,3893.7,8.26635222]
[1760811971088,0.001,3893.8,3893.7,8.70755222]
[1760811975720,0.001,3893.8,3893.7,8.26635222]
[1760811979901,0.001,3893.8,3893.7,9.99435222]
[1760811980200,0.001,3893.8,3893.7,10.43555222]
[1760811987774,0.001,3893.8,3893.7,11.06915222]
[1760811987992,1e-08,3894.2,3894.1,2.56798746]
[1760811988154,1e-08,3894.2,3894.1,9.90771235]
[1760811988477,1e-08,3894.2,3894.1,10.47691235]
[1760811988783,1e-08,3894.2,3894.1,10.61761235]
[1760811988986,1e-08,3894.2,3894.1,15.10821234]
[1760811991562,1e-08,3894.2,3894.1,14.98021234]
[1760811993180,0.001,3894.6,3894.5,7.90494304]
[1760811993394,0.001,3894.6,3894.5,15.57601803]
[1760811993693,0.001,3894.6,3894.5,18.72521803]
[1760811993917,0.001,3894.6,3894.5,18.82813429]
[1760811994896,0.001,3894.6,3894.5,16.6991343]
[1760811995050,0.001,3895.8,3894.5,16.6991343]
[1760811995051,0.001,3895.8,3895.7,2.56693277]
[1760811995246,0.001,3895.8,3895.7,2.59260209]
[1760811995697,0.001,3895.8,3895.7,2.73250209]
[1760812001312,0.1409,3895.8,3895.7,0.1399]
[1760812001813,0.1409,3895.8,3895.7,0.2679]
[1760812005314,0.1409,3895.8,3895.7,4.12489999]
[1760812005517,0.1409,3895.8,3895.7,6.69183276]
[1760812008088,0.1409,3895.8,3895.7,4.12489999]
[1760812008289,0.1409,3895.8,3895.7,3.85699999]
[1760812011128,0.001,3895.8,3895.7,3.85699999]
[1760812011327,0.1409,3895.8,3895.7,3.98499999]
[1760812012323,0.001,3895.8,3895.7,3.98499999]
[1760812013004,0.1409,3895.8,3895.7,3.98499999]
[1760812014092,0.001,3895.8,3895.7,3.85699999]
[1760812014296,0.1409,3895.8,3895.7,3.85699999]
[1760812016228,0.001,3895.8,3895.7,3.85699999]
[1760812017127,0.001,3895.8,3895.5,3.85699999]
[1760812020942,0.1409,3895.8,3895.5,3.85699999]
[1760812023025,0.1409,3895.8,3895.6,3.85699999]
[1760812023538,0.001,3895.8,3895.6,3.85699999]
[1760812025721,0.1409,3895.8,3895.6,3.85699999]
[1760812026133,0.001,3895.8,3895.6,3.85699999]
[1760812028950,0.001,3895.8,3895.5,3.85699999]
[1760812030028,0.001,3895.8,3895.4,0.5981]
[1760812030227,4.70361933,3895.6,3895.4,3.98499999]
[1760812030428,0.1399,3895.5,3895.4,3.85699999]
[1760812031353,0.001,3895.8,3895.4,3.85699999]
[1760812031554,0.001,3895.8,3895.4,4.32709999]
[1760812032474,0.001,3895.8,3895.4,3.85699999]
[1760812032647,0.001,3895.8,3895.5,0.4701]
[1760812033051,0.001,3895.8,3895.6,0.4701]
[1760812033448,0.04574687,3895.8,3895.6,0.4701]
[1760812036161,0.04574687,3895.8,3895.7,0.4701]
[1760812042074,0.04574687,3895.8,3895.4,3.85699999]
[1760812042585,0.18684687,3895.8,3895.4,3.85699999]
[1760812043545,0.001,3895.8,3895.4,3.85699999]
[1760812046773,0.001,3895.8,3895.3,4.32709999]
[1760812047280,0.04474664,3895.7,3895.3,4.32709999]
[1760812047479,0.04474664,3895.7,3895.4,0.4701]
[1760812050783,0.04474664,3895.7,3895.3,3.85699999]
[1760812051162,0.04474664,3895.7,3895.4,0.4701]
[1760812054484,0.04474664,3895.7,3895.4,0.5981]
[1760812055608,0.40364462,3895.8,3895.4,0.5981]
[1760812057387,0.40364462,3895.8,3895.5,0.4656]
[1760812058898,0.44839164,3895.8,3895.5,0.4656]
[1760812062617,0.44839164,3895.8,3895.4,0.128]
[1760812063129,0.44839164,3895.8,3895.4,0.5936]
[1760812065310,4.70361933,3895.6,3895.3,3.85699999]
[1760812065519,0.128,3895.4,3895.3,3.85699999]
[1760812066108,0.1727491,3895.4,3895.3,3.85699999]
[1760812067552,0.128,3895.4,3895.3,3.85699999]
[1760812068652,0.128,3895.4,3895.3,4.32259999]
[1760812070352,0.128,3895.4,3895.3,0.4656]
[1760812070645,0.17274858,3895.4,3895.3,0.4656]
[1760812075092,0.17274858,3895.4,3895.1,0.4656]
[1760812075387,0.17274858,3895.4,3895.2,0.4656]
[1760812082036,0.17274858,3895.4,3895.0,3.85699999]
[1760812082189,0.04474858,3895.4,3895.1,4.79831043]
[1760812082391,0.04474858,3895.4,3895.1,4.62906264]
[1760812082723,0.04474858,3895.4,3895.2,0.4656]
[1760812083321,0.04474858,3895.4,3895.3,0.4656]
[1760812085828,0.04574858,3895.4,3895.3,0.4656]
[1760812089729,0.04574858,3895.4,3895.2,3.85699999]
[1760812090229,0.04574858,3895.4,3895.2,4.28909999]
[1760812090803,0.04574858,3895.4,3895.2,3.85699999]
[1760812094042,0.04574858,3895.4,3895.0,4.28909999]
[1760812094338,0.04574858,3895.4,3895.0,3.85699999]
[1760812094639,0.04574858,3895.4,3895.1,0.4321]
[1760812095207,0.04574858,3895.4,3895.2,0.4321]
[1760812099240,0.04574858,3895.4,3895.0,3.85699999]
[1760812099532,0.04574858,3895.4,3895.3,0.4321]
[1760812114069,0.04574858,3895.4,3895.0,3.85699999]
[1760812114431,0.04574858,3895.4,3895.1,0.457]
[1760812114632,0.04574858,3895.4,3895.1,1.2291004]
[1760812114834,0.04574858,3895.4,3895.2,0.457]
[1760812115331,0.04574858,3895.4,3895.1,0.7721004]
[1760812115784,0.4484189,3895.4,3895.1,0.7721004]
[1760812116070,0.4484189,3895.4,3895.1,1.2291004]
[1760812116365,0.4484189,3895.4,3895.1,0.7721004]
[1760812117570,2.56726227,3895.2,3895.1,0.7721004]
[1760812117876,2.56726227,3895.2,3894.6,0.002]
[1760812117877,2.3616,3894.7,3894.6,0.002]
[1760812118041,0.6336,3894.7,3894.6,0.002]
[1760812118242,0.7743,3894.7,3894.6,0.002]
[1760812118448,1.2333,3894.7,3894.6,0.002]
[1760812118945,1.0926,3894.7,3894.6,0.002]
[1760812120788,1.13735913,3894.7,3894.6,0.002]
[1760812121983,0.67835913,3894.7,3894.6,0.002]
[1760812126790,0.6336,3894.7,3894.6,0.002]
[1760812129870,0.67835925,3894.7,3894.6,0.002]
[1760812132308,0.04475925,3894.7,3894.6,0.002]
[1760812132609,0.04475925,3894.7,3894.6,0.916]
[1760812135121,0.04575925,3894.7,3894.6,0.916]
[1760812135681,0.04575925,3894.7,3894.6,1.66288293]
[1760812140425,0.04575925,3894.7,3894.6,5.64788292]
[1760812141133,0.001,3894.7,3894.6,5.64788292]
[1760812143542,0.001,3894.7,3894.6,8.2155407]
[1760812144146,0.001,3894.7,3894.6,4.35854071]
[1760812144358,0.001,3894.7,3894.6,8.24121727]
[1760812144527,0.001,3894.7,3894.6,8.2155407]
[1760812147228,0.001,3894.7,3894.6,14.64716003]
[1760812148820,0.001,3894.7,3894.6,28.60452703]
[1760812149024,0.001,3894.7,3894.6,21.45324503]
[1760812149318,0.001,3894.7,3894.6,20.04794503]
[1760812149977,0.001,3894.7,3894.6,17.53303603]
[1760812151171,0.001,3894.7,3894.6,17.53723703]
[1760812151952,0.001,3894.7,3894.6,19.10253703]
[1760812152752,0.001,3894.7,3894.6,17.80023703]
[1760812152952,0.001,3895.1,3895.0,3.20099409]
[1760812153175,0.001,3895.1,3895.0,8.05828736]
[1760812153477,0.001,3895.1,3895.0,8.50361342]
[1760812153851,0.001,3895.1,3895.0,14.11714442]
[1760812154053,0.001,3895.1,3895.0,8.50361342]
[1760812154257,0.001,3895.1,3895.0,19.42607028]
[1760812154454,0.001,3895.1,3895.0,20.23362328]
[1760812154660,0.001,3895.1,3895.0,16.8990743]
[1760812154849,0.001,3895.1,3895.0,15.3794303]
[1760812155050,0.001,3895.1,3895.0,12.1300763]
[1760812155463,0.001,3895.1,3895.0,15.9568513]
[1760812156155,0.001,3896.7,3896.0,2.56673511]
[1760812156361,0.0457361,3896.6,3896.1,3.98099999]
[1760812156562,0.0457361,3896.6,3896.1,7.01866922]
[1760812156758,0.001,3896.6,3896.1,7.12156324]
[1760812157171,0.001,3896.6,3896.1,6.87216324]
[1760812157377,0.001,3896.6,3896.1,8.28705308]
[1760812158297,0.001,3896.6,3896.1,7.59445308]
[1760812159391,0.001,3896.6,3896.1,8.06545308]
[1760812160164,0.001,3896.6,3896.1,8.57657511]
[1760812160491,0.001,3896.6,3896.1,10.30457511]
[1760812161893,0.001,3896.6,3896.1,9.79345308]
[1760812163475,0.001,3896.6,3896.1,10.31429168]
[1760812163674,0.14553202,3896.9,3896.1,10.31429168]
[1760812163865,0.04953202,3896.9,3896.8,2.56620817]
[1760812164267,0.04953202,3896.9,3896.8,2.66908896]
[1760812166985,0.09613202,3896.9,3896.8,2.66908896]
[1760812169605,0.09713202,3896.9,3896.8,2.66908896]
[1760812170198,0.05053202,3896.9,3896.8,2.66908896]
[1760812171008,0.05053202,3896.9,3896.8,6.52208895]
[1760812172299,0.09713202,3896.9,3896.8,6.52208895]
[1760812172499,0.05053202,3896.9,3896.8,6.52208895]
[1760812173889,0.05053202,3896.9,3896.8,6.65008895]
[1760812176521,0.05053202,3896.9,3896.8,4.08388078]
[1760812176891,0.09713202,3896.9,3896.8,4.08388078]
[1760812177224,0.05053202,3896.9,3896.8,4.08388078]
[1760812177402,0.05053202,3896.9,3896.8,6.65008895]
[1760812180435,0.04573202,3896.9,3896.8,6.65008895]
[1760812183639,0.04573202,3896.9,3896.8,7.10748895]
[1760812184135,0.04573202,3896.9,3896.8,8.07487165]
[1760812185211,0.001,3896.9,3896.8,8.07487165]
[1760812186841,0.001,3896.9,3896.8,8.07687165]
[1760812189547,0.04573142,3896.9,3896.8,8.07687165]
[1760812189860,0.001,3896.9,3896.8,8.07687165]
[1760812191273,0.001,3896.9,3896.8,4.08588078]
[1760812191769,0.001,3896.9,3896.8,6.65208895]
[1760812193245,0.001,3896.9,3896.8,2.79908896]
[1760812193543,0.001,3896.9,3896.8,0.23288079]
[1760812194475,0.04573313,3896.9,3896.8,0.23288079]
[1760812195082,0.04573313,3896.9,3896.8,2.79908896]
[1760812196161,0.04573313,3896.9,3896.8,0.23288079]
[1760812196360,0.04573313,3896.9,3896.8,0.13]
[1760812205196,0.04573313,3896.9,3896.8,0.002]
[1760812205398,0.09233313,3896.9,3896.8,0.002]
[1760812205766,0.0476,3896.9,3896.8,0.002]
[1760812206691,0.001,3896.9,3896.8,0.002]
[1760812207065,0.0476,3896.9,3896.8,0.002]
[1760812208195,0.001,3896.9,3896.8,0.002]
[1760812208396,0.001,3896.9,3896.8,0.4308]
[1760812209400,0.001,3896.9,3896.8,4.28379999]
[1760812210007,0.04572995,3896.9,3896.8,4.28379999]
[1760812215316,0.04572995,3896.9,3896.8,4.41179999]
[1760812215973,0.04572995,3896.9,3896.8,7.68610374]
[1760812216167,0.04572995,3896.9,3896.8,7.78898505]
[1760812216613,0.001,3896.9,3896.8,7.78898505]
[1760812218349,0.001,3896.9,3896.8,4.79397688]
[1760812218665,0.001,3896.9,3896.8,3.98299999]
[1760812220233,0.001,3896.9,3896.8,4.41179999]
[1760812220435,0.001,3896.9,3896.8,3.98299999]
[1760812220807,0.04572964,3896.9,3896.8,3.98299999]
[1760812223107,0.09232964,3896.9,3896.8,3.98299999]
[1760812224408,0.04572964,3896.9,3896.4,0.002]
[1760812224639,0.0466,3896.8,3896.4,0.002]
[1760812225611,0.09133445,3896.8,3896.4,0.002]
[1760812227214,0.04473445,3896.8,3896.4,0.002]
[1760812227746,0.09133445,3896.8,3896.4,0.002]
[1760812228448,0.49387206,3896.8,3896.4,0.002]
[1760812230750,0.44727206,3896.8,3896.4,0.002]
[1760812231159,0.44727206,3896.8,3896.4,0.4308]
[1760812231456,0.04473445,3896.8,3896.6,0.128]
[1760812231669,0.04473445,3896.8,3896.7,0.4288]
[1760812232543,0.001,3896.9,3896.7,0.58246274]
[1760812232740,0.001,3896.9,3896.7,3.14872657]
[1760812232939,0.001,3896.9,3896.7,2.71992657]
[1760812233122,0.001,3896.9,3896.8,0.4288]
[1760812235969,0.001,3896.9,3896.8,4.23906959]
[1760812236380,0.001,3896.9,3896.8,3.81026959]
[1760812237748,0.001,3896.9,3896.8,3.81226959]
[1760812239277,0.1756,3896.9,3896.8,3.81226959]
[1760812239845,0.129,3896.9,3896.8,3.81226959]
[1760812241264,0.17373379,3896.9,3896.8,3.81226959]
[1760812242082,0.17373379,3896.9,3896.8,0.002]
[1760812245285,0.04573379,3896.9,3896.8,0.4759]
[1760812247186,0.04573379,3896.9,3896.8,0.002]
[1760812247695,0.04573379,3896.9,3896.8,0.4759]
[1760812248992,0.04573379,3896.9,3896.8,0.002]
[1760812257303,5.42955312,3896.9,3896.8,0.002]
[1760812257707,5.38295312,3896.9,3896.8,0.002]
[1760812258388,5.78548508,3896.9,3896.8,0.002]
[1760812260496,0.44826575,3896.9,3896.8,0.002]
[1760812260807,0.57626575,3896.9,3896.8,0.002]
[1760812261101,0.53153196,3896.9,3896.8,0.002]
[1760812262881,0.129,3896.9,3896.8,0.4759]
[1760812263603,0.129,3896.9,3896.8,0.002]
[1760812264206,0.17373318,3896.9,3896.8,0.002]
[1760812264801,0.17373318,3896.9,3896.8,0.4655]
[1760812264975,0.17373318,3896.9,3896.8,0.002]
[1760812265171,0.04573318,3896.9,3896.8,0.4655]
[1760812267822,0.04573318,3896.9,3896.8,0.5935]
[1760812268619,0.04573318,3896.9,3896.8,4.40376959]
[1760812269375,0.04573318,3896.9,3896.8,6.96997776]
[1760812269803,0.04573318,3896.9,3896.8,7.92360961]
[1760812270793,0.04573318,3896.9,3896.8,5.35740144]
[1760812271109,0.04573318,3896.9,3896.8,4.40376959]
[1760812274798,0.04573318,3896.9,3896.8,6.96997776]
[1760812279714,0.04573318,3896.9,3896.8,4.40376959]
[1760812281214,0.04573318,3896.9,3896.8,3.94026959]
[1760812283027,0.04573318,3896.9,3896.8,4.38776959]
[1760812285521,0.04573318,3896.9,3896.8,3.94026959]
[1760812290134,0.04573318,3896.9,3896.8,6.50647776]
[1760812290335,0.04573318,3896.9,3896.8,7.90601596]
[1760812290632,0.04573318,3896.9,3896.8,5.33980779]
[1760812290838,0.001,3896.9,3896.8,4.38776959]
[1760812291023,0.001,3896.9,3896.8,3.94026959]
[1760812291531,0.001,3896.9,3896.8,3.81226959]
[1760812292233,0.001,3896.9,3896.8,0.002]
[1760812295212,0.001,3896.9,3896.8,0.4405]
[1760812295417,0.04573157,3896.9,3896.8,0.4405]
[1760812295805,0.001,3896.9,3896.8,0.4405]
[1760812298154,0.001,3896.9,3896.8,4.25076959]
[1760812298817,0.04573135,3896.9,3896.8,4.25076959]
[1760812299460,0.04573135,3896.9,3896.8,6.81697776]
[1760812299636,0.04573135,3896.9,3896.8,6.94497776]
[1760812299986,0.04573135,3896.9,3896.8,7.90639941]
[1760812300534,0.001,3896.9,3896.8,7.90639941]
[1760812301745,0.001,3896.9,3896.8,8.00928734]
[1760812302454,0.001,3896.9,3896.8,5.44307917]
[1760812304258,0.001,3896.9,3896.8,8.00928734]
[1760812317688,0.001,3896.9,3896.8,9.29878734]
[1760812317987,0.001,3896.9,3896.8,9.73728734]
[1760812318998,0.001,3896.9,3896.8,5.00457917]
[1760812319189,0.001,3896.9,3896.8,7.57078734]
[1760812323896,0.001,3896.9,3896.8,8.00928734]
[1760812325791,0.001,3896.9,3896.8,7.57078734]
[1760812325998,0.001,3896.9,3896.8,8.03328734]
[1760812326628,0.001,3896.9,3896.8,7.57078734]
[1760812327124,0.001,3896.9,3896.8,4.22301775]
[1760812327520,0.001,3896.9,3896.8,3.76051775]
[1760812327832,0.001,3896.9,3896.8,4.22301775]
[1760812329393,0.001,3896.9,3896.8,5.95101775]
[1760812331530,0.001,3896.9,3896.8,3.76051775]
[1760812332032,0.001,3896.9,3896.8,0.23288793]
[1760812332535,0.001,3896.9,3896.8,2.7990961]
[1760812332742,0.001,3896.9,3896.8,0.23288793]
[1760812334136,0.001,3896.9,3896.8,2.7990961]
[1760812334834,0.001,3896.9,3896.8,0.23288793]
[1760812335917,0.0476,3896.9,3896.8,0.23288793]
[1760812336323,0.001,3896.9,3896.8,0.23288793]
[1760812336522,0.001,3896.9,3896.8,3.1335961]
[1760812336726,0.001,3896.9,3896.8,3.70358878]
[1760812337436,0.001,3896.9,3896.8,8.40720811]
[1760812338363,0.001,3897.3,3896.8,8.40720811]
[1760812338364,0.001,3897.3,3897.2,4.29394478]
[1760812338641,0.001,3897.7,3897.6,2.56568144]
[1760812338818,0.001,3897.7,3897.6,3.10448316]
[1760812339005,0.001,3897.7,3897.6,3.669833]
[1760812339209,0.23713795,3900.1,3898.3,4.70361933]
[1760812339210,0.13428811,3900.1,3898.3,4.70361933]
[1760812339457,0.0486,3900.3,3899.3,2.5645381]
[1760812339458,0.40231508,3899.4,3899.3,2.5645381]
[1760812339606,0.0486,3900.3,3899.5,2.56437178]
[1760812339810,0.0486,3900.3,3899.6,2.56435921]
[1760812340218,0.40223987,3900.6,3899.3,1.28404106]
[1760812340423,0.40223987,3900.6,3899.8,2.56418601]
[1760812340718,0.40223987,3900.6,3899.9,0.4625]
[1760812341109,0.40223987,3900.6,3900.0,0.02564102]
[1760812341322,0.0486,3901.4,3900.1,0.48814036]
[1760812341522,0.40211909,3901.2,3900.2,2.56395818]
[1760812341734,0.40211909,3901.2,3900.3,0.02563905]
[1760812342262,0.40211909,3901.2,3900.4,0.02563839]
[1760812342471,0.40211909,3901.2,3900.5,2.56377387]
[1760812342627,0.40211909,3901.2,3900.6,0.02563708]
[1760812342822,0.0972,3901.5,3900.6,0.02563708]
[1760812343159,1.8252,3901.5,3900.0,2.96630718]
[1760812343373,0.0486,3901.5,3900.0,2.96630718]
[1760812343535,0.0486,3901.5,3900.1,3.02650339]
[1760812343740,0.0486,3901.4,3900.1,0.4625]
[1760812343972,0.6336,3901.1,3900.0,0.40223987]
[1760812344158,0.0486,3901.0,3900.0,0.40223987]
[1760812344337,0.0486,3900.9,3900.0,0.40223987]
[1760812344729,0.6336,3901.1,3900.0,0.40223987]
[1760812344964,0.0486,3901.0,3900.0,0.40223987]
[1760812345268,1.82129193,3900.9,3900.0,0.40223987]
[1760812345426,0.0486,3900.8,3900.0,0.40223987]
[1760812345772,1.77269193,3900.9,3899.4,0.4625]
[1760812345773,4.70361933,3900.6,3899.4,0.4625]
[1760812346068,4.70361933,3900.6,3899.5,0.77110415]
[1760812346069,0.0486,3900.5,3899.5,0.77110415]
[1760812346443,0.04469484,3900.3,3899.8,0.128]
[1760812346961,0.1766,3900.5,3899.8,0.128]
[1760812347728,0.128,3900.5,3899.8,0.128]
[1760812348040,0.0486,3900.4,3899.8,0.128]
[1760812348829,0.0486,3900.4,3899.2,0.6866]
[1760812349030,0.6336,3900.9,3899.6,0.77115767]
[1760812349268,0.128,3900.5,3899.8,0.128]
[1760812350077,0.128,3900.5,3899.8,0.7616]
[1760812350963,0.04469456,3900.4,3899.8,0.7616]
[1760812351432,0.04469456,3900.4,3899.8,0.128]
[1760812351779,0.04469456,3900.4,3900.2,0.128]
[1760812352561,0.04469456,3900.4,3900.2,0.256]
[1760812354664,0.04469456,3900.4,3899.9,0.5905]
[1760812354864,0.04469456,3900.4,3900.1,0.128]
[1760812355363,0.04469456,3900.4,3899.9,0.5905]
[1760812358889,0.04469456,3900.4,3900.0,0.4463]
[1760812359096,0.04469456,3900.4,3899.9,0.128]
[1760812359262,0.04469456,3900.4,3900.0,0.4463]
[1760812359892,0.04469456,3900.4,3899.9,0.128]
[1760812360192,0.04469456,3900.4,3899.9,3.93826959]
[1760812361591,0.04469456,3900.4,3899.9,4.38456959]
[1760812361982,0.04469456,3900.4,3900.0,0.4463]
[1760812363492,0.04469456,3900.4,3899.9,0.128]
[1760812363664,0.04469456,3900.4,3900.1,0.4463]
[1760812364663,0.04469456,3900.4,3900.2,0.4463]
[1760812364995,0.04469456,3900.4,3900.3,0.4463]
[1760812365786,0.04469456,3900.4,3899.9,0.128]
[1760812366188,0.04469456,3900.4,3899.9,0.5743]
[1760812366492,0.04469456,3900.4,3900.0,0.4463]
[1760812366666,0.04469456,3900.4,3899.9,0.128]
[1760812367275,0.04469456,3900.4,3900.0,0.4463]
[1760812367489,0.04469456,3900.4,3899.9,0.128]
[1760812367490,0.04469456,3900.4,3900.1,0.4463]
[1760812368299,0.04469456,3900.4,3899.9,0.128]
[1760812368502,0.04469456,3900.4,3899.9,0.5743]
[1760812368986,0.04469456,3900.4,3899.9,0.128]
[1760812369172,0.128,3900.3,3899.7,0.5743]
[1760812369381,0.128,3900.3,3899.8,0.4463]
[1760812369972,0.128,3900.3,3899.7,0.128]
[1760812370186,0.128,3900.3,3899.9,0.4463]
[1760812371099,0.128,3900.3,3900.0,0.4463]
[1760812371483,0.128,3900.3,3899.7,0.128]
[1760812371681,0.128,3900.3,3899.8,0.4463]
[1760812371896,0.128,3900.3,3899.9,0.4463]
[1760812372087,0.128,3900.3,3899.7,0.128]
[1760812372288,0.128,3900.3,3900.0,0.4463]
[1760812372596,0.128,3900.3,3899.7,0.128]
[1760812373184,0.6336,3900.2,3899.7,0.128]
[1760812373388,0.6336,3900.2,3899.2,0.2241]
[1760812373389,0.6336,3900.2,3899.2,0.128]
[1760812373391,0.128,3899.8,3899.2,0.128]
[1760812373587,0.6336,3899.8,3898.7,0.4463]
[1760812373792,0.128,3899.6,3898.9,0.128]
[1760812374202,0.17270207,3899.6,3898.9,0.128]
[1760812374768,0.17270207,3899.6,3899.0,0.4463]
[1760812375691,0.17270207,3899.6,3899.1,0.2287]
[1760812375893,0.17270207,3899.6,3899.1,0.675]
[1760812376106,0.17270207,3899.6,3898.9,0.128]
[1760812376597,0.128,3899.6,3898.9,0.128]
[1760812376807,0.6336,3899.5,3898.4,0.2241]
[1760812376976,1.856,3899.1,3898.4,0.7984]
[1760812377366,1.856,3899.1,3898.4,0.3521]
[1760812377705,0.128,3898.8,3898.1,0.5743]
[1760812379402,0.128,3898.8,3898.2,0.4463]
[1760812379696,0.044708,3898.7,3898.2,0.4463]
[1760812380100,0.044708,3898.7,3898.3,0.4463]
[1760812380315,0.044708,3898.7,3898.1,0.128]
[1760812380521,0.044708,3898.7,3898.4,0.4463]
[1760812380668,0.044708,3898.7,3898.5,0.4463]
[1760812380871,0.044708,3898.7,3898.6,0.4463]